[Event "Romanian Team Blitz Open 2022"]
[Site "Sebes"]
[Date "2022.12.04"]
[Round "5.26"]
[White "Burja-Udrea, Razvan-Andrei"]
[Black "Arion, Ilie"]
[Result "0-1"]
[ECO "B07"]
[WhiteElo "1365"]
[BlackElo "1924"]
[Annotator "TA"]
[PlyCount "124"]
[EventDate "2022.12.04"]
[EventType "blitz"]
[EventCountry "ROU"]
[SourceTitle "playchess.com"]
[Source "ChessBase"]
[SourceQuality "1"]
[TimeControl "180+2"]

{[%evp 9,124,4,35,37,30,-15,16,22,67,68,84,-21,81,-18,22,10,11,0,39,0,0,0,44,0,91,-24,-14,-96,-100,-87,-63,-72,-53,-133,-95,-139,0,0,0,-9,16,0,37,0,0,-21,-18,-11,-12,-22,-6,-50,-30,-27,0,0,0,0,0,0,88,81,122,59,119,101,90,85,94,25,25,31,25,-21,610,-496,-477,-603,-597,-558,-504,-509,-509,-503,-310,-366,-355,-373,-362,-417,-420,-416,-413,-395,0,-408,-345,-343,-327,-375,-316,-29976,-29978,-29978,-29979,-29979,-29979,-29979,-29980,-29980,-29981,-29981,-29982,-29983,-220,-29984,-29984]} 1. e4 {[%emt 0:00:02]} g6 {[%emt 0:00:04]} 2. d4 {[%emt 0:00:01]} d6 {[%emt 0:00:01]} 3. h4 {[%emt 0:00:01]} Nf6 {[%emt 0:00:05]} 4. Nc3 {[%emt 0:00:02]} Bg7 {[%emt 0:00:03]} 5. Nf3 {[%emt 0:00:01]} c5 {[%emt 0:00:02]} 6. dxc5 {[%emt 0:00:04] B07: Pirc Defence: Miscellaneous Systems.} Qa5 {[%emt 0:00:01]} 7. Bd3 {[%emt 0:00:08]} (7. Bb5+ {is more complex.} Nc6 8. Bd2 dxc5 9. Nd5) 7... Qxc5 {[%emt 0:00:05]} 8. Be3 {[%emt 0:00:01] [#] The position is equal.} Qc7 $146 {[%emt 0:00:08]} ({Predecessor:} 8... Qa5 9. Qd2 Bg4 10. O-O-O Nbd7 11. Kb1 Rc8 12. Rc1 Bxf3 13. gxf3 Ne5 14. Qe2 O-O {1-0 (41) Liang,A (2592)-Arribas Lopez,A (2434) Chess.com INT 2020}) 9. Qd2 {[%emt 0:00:02]} (9. Bb5+ Bd7 $11) 9... a6 {[%emt 0:00:02]} 10. Rd1 {[%emt 0:00:11]} (10. h5 $16) 10... Nc6 {[%emt 0:00:04]} (10... Bg4 $11 {keeps the balance.}) 11. Bc4 {[%emt 0:00:17]} (11. h5 $1 $16) 11... Na5 {[%emt 0:00:15]} (11... Bg4 {keeps more tension.} 12. Bg5 Qa5 13. Bxf6 Bxf6 14. Nd5 Bg7) 12. Bb3 {[%emt 0:00:11]} Nxb3 {[%emt 0:00:02]} (12... Bg4 {looks sharper.} 13. Bd4 e5 14. Be3 Nc4) 13. cxb3 {[%emt 0:00:03]} b5 {[%emt 0:00:03]} 14. Nd4 {[%emt 0:00:10][%cal Oh4h5]} Bb7 {[%emt 0:00:04]} 15. f3 {[%emt 0:00:04]} Qd7 {[%emt 0:00:16]} 16. Bf2 {[%emt 0:00:16]} b4 {[%emt 0:00:21]} (16... Rc8 $11 {remains equal.}) 17. Nce2 {[%emt 0:00:06]} (17. Na4 $16) 17... a5 $11 {[%emt 0:00:00]} 18. Qd3 {[%emt 0:00:06]} (18. Nc2 $11) 18... Ba6 {[%emt 0:00:01]} 19. Qd2 {[%emt 0:00:02]} Rc8 {[%emt 0:00:02]} 20. O-O {[%emt 0:00:08]} O-O {[%emt 0:00:02] Black is more active.} 21. Rc1 {[%emt 0:00:02]} (21. Rfe1 $1 $15) 21... Rfd8 {[%emt 0:00:33]} 22. Rfd1 {[%emt 0:00:02]} d5 {[%emt 0:00:03]} ({Better is} 22... Rxc1 $17 23. Rxc1 e5) 23. e5 {[%emt 0:00:09] Strongly threatening Rxc8.} Ne8 {[%emt 0:00:05]} 24. f4 {[%emt 0:00:01]} e6 {[%emt 0:00:01]} (24... Qg4 {seems wilder.} 25. Re1 Rxc1 26. Rxc1 Bf8) 25. g4 {[%emt 0:00:06]} Nc7 {[%emt 0:00:02]} 26. Ng3 {[%emt 0:00:05]} Nb5 {[%emt 0:00:03]} 27. Nxb5 {[%emt 0:00:06]} Bxb5 {[%emt 0:00:04]} 28. Bb6 {[%emt 0:00:08]} Rxc1 {[%emt 0:00:01]} 29. Rxc1 {[%emt 0:00:02]} Ra8 {[%emt 0:00:02]} 30. Rc7 {[%emt 0:00:07]} Qe8 {[%emt 0:00:01]} (30... Qd8 $5 {[%cal Rd8h4]} 31. g5 Qb8 $15) 31. Qc2 {[%emt 0:00:03]} Qb8 {[%emt 0:00:02]} 32. Qc5 {[%emt 0:00:13]} Be8 {[%emt 0:00:36] aiming for ...Bf8.} 33. Bxa5 {[%emt 0:00:15]} Bf8 {[%emt 0:00:01]} 34. Qb6 {[%emt 0:00:00]} Qxb6+ {[%emt 0:00:02]} (34... Qd8 $11 35. Ra7 (35. Bxb4 $2 Bxb4 36. Qb7 Bd2 $19) 35... Qxh4 36. Rxa8 Qxg3+ 37. Kh1 Qh3+ 38. Kg1 Qxg4+ 39. Kh1 Qh3+ 40. Kg1 Qg3+ 41. Kh1 Qh4+ 42. Kg2 Qg4+ 43. Kh1 Qh5+ 44. Kg1 Qg4+ 45. Kh1) 35. Bxb6 $16 {[%emt 0:00:02]} Kg7 {[%emt 0:00:10] [#]} ({Reject} 35... Rxa2 $6 36. Rc8 Ra6 37. Bd4 $14) 36. f5 {[%emt 0:00:13]} (36. Ne2 $1 $16) 36... exf5 {[%emt 0:00:18]} (36... Kg8 $1 $14) 37. gxf5 {[%emt 0:00:02]} Rxa2 {[%emt 0:00:01]} 38. Bd4 {[%emt 0:00:11]} Ra8 {[%emt 0:00:12]} 39. e6+ {[%emt 0:00:02]} ({White should try} 39. Kf2 $16 {Threatens to win with e6+.} Kg8 40. f6) 39... Kg8 $11 {[%emt 0:00:02] White must now prevent ...Bd6.} 40. e7 {[%emt 0:00:00]} Bh6 {[%emt 0:00:03]} 41. fxg6 {[%emt 0:00:09]} (41. Kg2 $142) 41... Bf4 $2 {[%emt 0:00:02][%mdl 8192] [#]} (41... fxg6 $11 42. Kf2 Kf7) 42. gxf7+ $4 {[%emt 0:00:10][%mdl 8192]} ({Not} 42. gxh7+ Kxh7 43. Rc5 Bxg3 $17) (42. Nh5 $1 $18 {[%cal Rh5f6]} fxg6 43. Nxf4) 42... Kxf7 $19 {[%emt 0:00:02]} 43. Rc5 {[%emt 0:00:08]} Bxg3 {[%emt 0:00:01]} 44. Rxd5 {[%emt 0:00:02]} Kxe7 {[%emt 0:00:01][%cal Oe8c6] ...Bc6! is the strong threat.} 45. Bc5+ {[%emt 0:00:01]} Kf7 {[%emt 0:00:01]} 46. Bxb4 {[%emt 0:00:01]} Rb8 {[%emt 0:00:02]} 47. Rd4 {[%emt 0:00:04]} Be5 {[%emt 0:00:02]} 48. Re4 {[%emt 0:00:01]} Bxb2 {[%emt 0:00:02]} 49. Kf2 {[%emt 0:00:01]} Bf6 {[%emt 0:00:01]} 50. Rf4 {[%emt 0:00:02]} Kg7 {[%emt 0:00:04]} 51. Rg4+ {[%emt 0:00:04]} Kf7 {[%emt 0:00:05]} 52. Rf4 {[%emt 0:00:01]} Bd7 {[%emt 0:00:03]} 53. Bc3 {[%emt 0:00:01]} Rb6 {[%emt 0:00:01][%cal Of7g6]} 54. Bd4 {[%emt 0:00:01]} Rc6 {[%emt 0:00:01]} ({And not} 54... Rxb3 55. Rxf6+ Ke7 56. Ra6 $11) 55. Bxf6 $2 {[%emt 0:00:01]} (55. Kg3 $19) 55... Rxf6 {[%emt 0:00:01]} 56. Rxf6+ {[%emt 0:00:01]} Kxf6 {[%emt 0:00:01] KB-KPP} 57. b4 {[%emt 0:00:00]} Bb5 {[%emt 0:00:01]} 58. Kg3 {[%emt 0:00:01]} Kf5 {[%emt 0:00:01]} 59. Kh3 {[%emt 0:00:02]} h5 {[%emt 0:00:01]} 60. Kg3 {[%emt 0:00:01]} Ke4 {[%emt 0:00:01]} 61. Kh3 {[%emt 0:00:03]} Kf3 {[%emt 0:00:01]} 62. Kh2 {[%emt 0:00:01]} Kg4 {[%emt 0:00:00] Weighted Error Value: White=0.49/Black=0.45} 0-1

[Event "Romanian Team Blitz Open 2022"]
[Site "Sebes"]
[Date "2022.12.04"]
[Round "5.27"]
[White "Craciun, Ovidiu"]
[Black "Simina, Alexandru-Ioan"]
[Result "1/2-1/2"]
[ECO "C45"]
[WhiteElo "1857"]
[BlackElo "1244"]
[Annotator "NA RC COMBH"]
[PlyCount "44"]
[EventDate "2022.12.04"]
[EventType "blitz"]
[EventCountry "ROU"]
[SourceTitle "playchess.com"]
[Source "ChessBase"]
[SourceQuality "1"]
[TimeControl "180+2"]

1. e4 {[%emt 0:00:02]} e5 {[%emt 0:00:01]} 2. Nf3 {[%emt 0:00:01]} Nc6 {[%emt 0:00:02]} 3. d4 {[%emt 0:00:01]} exd4 4. Nxd4 {[%emt 0:00:01]} Bc5 {[%emt 0:00:11]} 5. c3 {[%emt 0:00:01]} d6 {[%emt 0:00:08]} 6. Bc4 {[%emt 0:00:02]} Nf6 {[%emt 0:00:17]} 7. Nxc6 {[%emt 0:01:01]} bxc6 {[%emt 0:00:05]} 8. Qf3 {[%emt 0:00:12]} O-O {[%emt 0:00:36]} 9. Bg5 {[%emt 0:00:02]} Qe7 {[%emt 0:00:34]} 10. Bxf6 {[%emt 0:00:06]} Qxf6 {[%emt 0:00:03]} 11. Qxf6 {[%emt 0:00:02]} gxf6 {[%emt 0:00:01]} 12. O-O {[%emt 0:00:13]} f5 {[%emt 0:00:02]} 13. Nd2 {[%emt 0:00:10]} Be6 {[%emt 0:00:35]} 14. exf5 {[%emt 0:00:04]} Bxf5 {[%emt 0:00:03]} 15. Nb3 {[%emt 0:00:04]} Bb6 {[%emt 0:00:04]} 16. a4 {[%emt 0:00:02]} a5 {[%emt 0:00:04]} 17. Rfe1 {[%emt 0:00:13]} d5 {[%emt 0:00:04]} 18. Bf1 {[%emt 0:00:07]} Rfe8 {[%emt 0:00:02]} 19. h3 {[%emt 0:00:16]} Re6 {[%emt 0:00:13]} 20. g4 {[%emt 0:00:08]} Bc2 {[%emt 0:00:10]} 21. Rxe6 {[%emt 0:00:05]} fxe6 {[%emt 0:00:02]} 22. Nd2 {[%emt 0:00:16]} Rf8 {[%emt 0:00:03]} 1/2-1/2

[Event "Romanian Team Blitz Open 2022"]
[Site "Sebes"]
[Date "2022.12.04"]
[Round "5.28"]
[White "Simina, Andrei-Petru"]
[Black "Stefan, Iulia-Cristiana"]
[Result "0-1"]
[ECO "A41"]
[WhiteElo "1033"]
[BlackElo "1662"]
[Annotator "NA RC COMBH"]
[PlyCount "72"]
[EventDate "2022.12.04"]
[EventType "blitz"]
[EventCountry "ROU"]
[SourceTitle "playchess.com"]
[Source "ChessBase"]
[SourceQuality "1"]
[TimeControl "180+2"]

1. d4 {[%emt 0:00:01]} d6 {[%emt 0:00:02]} 2. Nc3 {[%emt 0:00:03]} g6 {[%emt 0:00:02]} 3. Nf3 {[%emt 0:00:02]} Bg7 {[%emt 0:00:01]} 4. b3 {[%emt 0:00:06]} Nf6 {[%emt 0:00:02]} 5. Bb2 {[%emt 0:00:01]} O-O {[%emt 0:00:03]} 6. e3 {[%emt 0:00:01]} Nbd7 {[%emt 0:00:05]} 7. Bc4 {[%emt 0:00:08]} e5 {[%emt 0:00:11]} 8. dxe5 {[%emt 0:00:04]} dxe5 {[%emt 0:00:06]} 9. O-O {[%emt 0:00:23]} c6 {[%emt 0:00:06]} 10. a4 {[%emt 0:00:22]} a5 {[%emt 0:00:04]} 11. Na2 {[%emt 0:02:13]} Qc7 {[%emt 0:00:06]} 12. Nc1 {[%emt 0:00:00]} h6 {[%emt 0:00:12]} 13. Nd3 {[%emt 0:00:00]} e4 {[%emt 0:00:04]} 14. Nde5 {[%emt 0:00:00]} exf3 {[%emt 0:00:07]} 15. Nxd7 {[%emt 0:00:00]} Nxd7 {[%emt 0:00:12]} 16. Bxg7 {[%emt 0:00:00]} Kxg7 {[%emt 0:00:03]} 17. Qxf3 {[%emt 0:00:00]} Ne5 {[%emt 0:00:09]} 18. Qe4 {[%emt 0:00:00]} Nxc4 {[%emt 0:00:03]} 19. Qxc4 {[%emt 0:00:00]} Be6 {[%emt 0:00:02]} 20. Qd4+ {[%emt 0:00:00]} Kg8 {[%emt 0:00:01]} 21. Qh4 {[%emt 0:00:00]} Kg7 {[%emt 0:00:07]} 22. Qd4+ {[%emt 0:00:00]} Kh7 {[%emt 0:00:01]} 23. Rad1 {[%emt 0:00:00]} Rad8 {[%emt 0:00:01]} 24. Qa7 {[%emt 0:00:02]} Ra8 {[%emt 0:00:11]} 25. Qd4 {[%emt 0:00:01]} Rfd8 {[%emt 0:00:03]} 26. Qc3 {[%emt 0:00:05]} Rxd1 {[%emt 0:00:02]} 27. Rxd1 {[%emt 0:00:00]} Rd8 {[%emt 0:00:02]} 28. Rxd8 {[%emt 0:00:04]} Qxd8 {[%emt 0:00:01]} 29. h3 {[%emt 0:00:01]} Qd5 {[%emt 0:00:06]} 30. Qe1 {[%emt 0:00:18]} Bf5 {[%emt 0:00:10]} 31. Qe2 {[%emt 0:00:03]} Qc5 {[%emt 0:00:04]} 32. c4 {[%emt 0:00:02]} Qd6 {[%emt 0:00:10]} 33. Qe1 {[%emt 0:00:05]} Qb4 {[%emt 0:00:05]} 34. Qb1 {[%emt 0:00:02]} Bxb1 {[%emt 0:00:03]} 35. Kh2 {[%emt 0:00:05]} Qxb3 {[%emt 0:00:03]} 36. f4 {[%emt 0:00:00]} Qxa4 {[%emt 0:00:02]} 0-1

[Event "Romanian Team Blitz Open 2022"]
[Site "Sebes"]
[Date "2022.12.04"]
[Round "5.29"]
[White "Miron, Toma"]
[Black "Neacsu, Mircea"]
[Result "0-1"]
[ECO "A00"]
[WhiteElo "2188"]
[BlackElo "1901"]
[Annotator "TA"]
[PlyCount "118"]
[EventDate "2022.12.04"]
[EventType "blitz"]
[EventCountry "ROU"]
[SourceTitle "playchess.com"]
[Source "ChessBase"]
[SourceQuality "1"]
[TimeControl "180+2"]

{[%evp 9,118,-131,-15,-15,-18,-18,-25,-15,-20,-19,0,0,-4,-62,-60,-116,-39,-52,-18,-28,-2,-22,0,-3,13,-41,-14,-73,-87,-91,-92,-98,-105,-109,-85,-97,-53,-89,-91,-117,0,0,0,-195,241,236,398,383,384,275,252,226,535,-43,342,238,214,82,347,347,439,414,389,380,348,-63,696,686,641,256,533,43,47,32,33,33,41,8,21,16,17,8,17,-456,-214,-926,-381,-893,-587,-565,-464,-533,-518,-29979,-29964,-29991,-29982,-29982,-29983,-29983,-29984,-29984,-29985,-29987,-29986,-29986,-29987,-29987,-29988,-29988,-29989]} 1. g4 {[%emt 0:00:06]} d5 {[%emt 0:00:03]} 2. Bg2 {[%emt 0:00:01]} Bxg4 {[%emt 0:00:12]} 3. c4 {[%emt 0:00:02]} c6 {[%emt 0:00:28]} 4. cxd5 {[%emt 0:00:03]} cxd5 {[%emt 0:00:06]} 5. Qb3 {[%emt 0:00:01] [#]} Qb6 {[%emt 0:00:28]} (5... Nf6 $1 $17 {White must now prevent ...Qd7.} 6. Nc3 e6) 6. Qxb6 $11 {[%emt 0:00:03] A00: Irregular Openings.} axb6 {[%emt 0:00:02]} 7. Bxd5 {[%emt 0:00:01]} Nc6 {[%emt 0:00:04]} 8. Nc3 {[%emt 0:00:09] Black has an edge.} Nf6 {[%emt 0:00:05]} 9. Bg2 {[%emt 0:00:02]} e5 {[%emt 0:00:17] [#]} 10. a3 $146 {[%emt 0:00:04]} ({Predecessor:} 10. d3 Be7 11. h3 Be6 12. Nf3 {½-½ (12) Ustianovich,N (2204)-Sumin,V (1918) Lvov 2011}) 10... Bc5 {[%emt 0:00:09]} 11. e3 {[%emt 0:00:05] Against Nd4} (11. Rb1 $11) 11... O-O {[%emt 0:00:22][%cal Ob6b5]} (11... Nb4 $5 {[%cal Rb4c2]} 12. Kf1 O-O 13. Bxb7 Ra7 $15) 12. Rb1 {[%emt 0:00:06]} (12. Nge2 $15) 12... Rfe8 {[%emt 0:00:17]} (12... Bf5 $17 13. e4 Be6) 13. b4 $15 {[%emt 0:00:09]} Bd6 {[%emt 0:00:05][%cal Bc5d6,Bd6b8,Bb8e5][%mdl 32]} 14. Nb5 {[%emt 0:00:10]} Bb8 {[%emt 0:00:01]} 15. Bb2 {[%emt 0:00:05]} Bf5 {[%emt 0:00:11]} 16. Rc1 {[%emt 0:00:06]} Bd3 {[%emt 0:00:06]} 17. Nc3 {[%emt 0:00:07]} (17. Bf1 $11 Bxf1 18. Kxf1) 17... e4 {[%emt 0:00:02]} 18. Nge2 {[%emt 0:00:05]} (18. f4 $1 $11 {remains equal.}) 18... Be5 {[%emt 0:00:02]} 19. f4 {[%emt 0:00:25]} exf3 {[%emt 0:00:06]} 20. Bxf3 {[%emt 0:00:03]} Rad8 {[%emt 0:00:08] Black has more active pieces.} 21. h4 {[%emt 0:00:09]} h5 {[%emt 0:00:01]} 22. Rg1 {[%emt 0:00:03] Against Ng4} Kh7 {[%emt 0:00:02]} 23. Rg5 {[%emt 0:00:02]} g6 {[%emt 0:00:12]} 24. b5 {[%emt 0:00:19]} Na5 {[%emt 0:00:01]} (24... Bxb5 $17 {aiming for ...Bd3.} 25. Nxb5 (25. d4 Bxe2 26. Bxe2 Bb8 $17) 25... Bxb2) 25. Rxe5 $1 $11 {[%emt 0:00:20]} Rxe5 {[%emt 0:00:01]} 26. Na4 $2 {[%emt 0:00:15]} (26. Ne4 $1 $11 Nxe4 27. Bxe5) 26... Re6 $4 {[%emt 0:00:04][%mdl 8192]} (26... Rf5 $19 {and life is good for Black.} 27. Nf4 Bxb5 28. Nxb6 Bc6) 27. Nf4 $18 {[%emt 0:00:06][%cal Be2f4,Bf4d3,Bd3e5,Be5f7,Bf7g5][%mdl 32]} Red6 {[%emt 0:00:03]} (27... Rdd6 28. Nxe6 Rxe6) 28. Nxd3 {[%emt 0:00:06]} Ng4 {[%emt 0:00:03]} 29. Bxg4 (29. Bd4 Nb3 $16) 29... hxg4 {[%emt 0:00:01]} 30. Ne5 {[%emt 0:00:16][%csl LRf7,LRg4]} Rxd2 $2 {[%emt 0:00:01]} (30... g3 31. d4 (31. Nxf7 g2 $16) 31... Rf6) 31. Bc3 $2 {[%emt 0:00:03]} (31. Nxg4 Rg2 32. Nf2 Rg1+ 33. Ke2 Rxc1 34. Bxc1 Nb3 $16) ({White has to play} 31. Nxf7 $18 R8d3 32. Ne5 Rxb2 33. Rc7+ Kh6 34. Nxd3 (34. Nxb2 Rxe3+ 35. Kf2 Rxe5 $15) 34... Rxb5 35. Kf2) 31... R2d5 {[%emt 0:00:04][%mdl 8192]} (31... Rh2 $15 32. Nxf7 (32. Nxb6 $2 Nb3 $19) 32... Ra8 33. Ng5+ (33. Nxb6 $2 Rh1+ 34. Ke2 Rxc1 $19) 33... Kg8) 32. Nxf7 {[%emt 0:00:03]} (32. Nxb6 Rxb5 33. Nbd7 (33. Nxf7 Nb3 $18) 33... Nc6 34. Nf6+ Kg7 $18) 32... Re8 {[%emt 0:00:04]} 33. Ke2 {[%emt 0:00:13]} ({Much less strong is} 33. Nxb6 $6 Rxe3+ 34. Kf2 Rxc3 35. Rxc3 Rf5+ 36. Kg3 Rxf7 $16) (33. Ng5+ $18 {and the rest is easy.} Kg8 34. Nxb6) 33... Nb3 $2 {[%emt 0:00:04][%mdl 8192]} (33... Nc4 $16 {was called for.} 34. Ng5+ Kg8) 34. Rg1 {[%emt 0:00:05]} Re7 {[%emt 0:00:03]} 35. Ng5+ {[%emt 0:00:03]} ({Less strong is} 35. Nxb6 Rxb5 36. Ng5+ Kh6 $18) 35... Kh6 {[%emt 0:00:03]} 36. Nxb6 {[%emt 0:00:18]} ({Not} 36. Rxg4 Rxb5 37. Rf4 Rf5 $18) 36... Rxb5 {[%emt 0:00:13] [#]} 37. Rxg4 $2 {[%emt 0:00:00]} Nc5 $2 {[%emt 0:00:00][%mdl 8192]} (37... Rxb6 $15 38. Rf4 Rc6) 38. Nd5 {[%emt 0:00:00]} Rd7 {[%emt 0:00:00]} 39. e4 {[%emt 0:00:06]} (39. Nf4) 39... Rb3 $2 {[%emt 0:00:06]} (39... Nxe4 40. Rxe4 Rbxd5) 40. Kd2 $2 {[%emt 0:00:02]} ({Better is} 40. Bb4 $18 b6 41. Rf4) 40... Nxe4+ {[%emt 0:00:02][%mdl 64] Remove Defender} 41. Nxe4 (41. Kc2 {looks sharper.} Rxa3 42. Rxe4 Rxd5 43. Ne6) 41... Rxd5+ {[%emt 0:00:02]} 42. Kc2 Rxa3 {[%emt 0:00:02]} 43. Kb2 Ra8 (43... Ra4 {is interesting.} 44. Kb3 b5 45. Bb4 Rd3+) 44. Kb3 Rc8 45. Kb4 Rd3 {[%emt 0:00:06]} 46. Nf6 $2 {[%emt 0:00:12][%mdl 8192]} Rdxc3 $19 {[%emt 0:00:02][%mdl 4096] Endgame KRR-KRN} (46... Rcxc3 $142 47. Rf4 Rb3+ 48. Kc5 Rdc3+ 49. Kd6 Rc6+ 50. Ke7 g5 51. Ng4+ Kh5 52. Nf6+ Kg6 53. h5+ Kg7 54. h6+ Kxh6 55. Ng4+ Kh5) 47. Rd4 $2 (47. Ng8+ Kg7 48. Ne7) 47... Kg7 {[%emt 0:00:02]} (47... Rc1 $142 {( -> ...Rb1+)} 48. Rd3 R8c4+ 49. Kb5 Rc5+ 50. Kb4 R1c4+ 51. Kb3 Rxh4) 48. Nd7 $2 {[%emt 0:00:04]} (48. Ne8+ Kh6 49. Nd6) 48... R8c7 {[%emt 0:00:02]} 49. Ne5 {[%emt 0:00:02]} Kf6 {[%emt 0:00:02]} 50. Ng4+ Kf5 {[%emt 0:00:02]} 51. Ne3+ (51. Nf2 $19) 51... Ke5 {[%emt 0:00:02] Black mates.} 52. Nc4+ R3xc4+ {[%emt 0:00:02]} 53. Rxc4 Rxc4+ {[%emt 0:00:02]} 54. Kxc4 {KPP-KP} Kf4 55. Kb5 Kg4 56. h5 {[%emt 0:00:14]} Kxh5 57. Kb6 g5 {[%cal Bg6g5,Bg5g4,Bg4g3][%mdl 32]} 58. Kxb7 g4 59. Kc6 g3 {Quite a comeback for Black.   Weighted Error Value: White=0.94/Black=1.04} 0-1

[Event "Romanian Team Blitz Open 2022"]
[Site "Sebes"]
[Date "2022.12.04"]
[Round "5.30"]
[White "Badau, Iancu-Daniel"]
[Black "Campian, Cristian"]
[Result "1-0"]
[ECO "B30"]
[WhiteElo "1792"]
[BlackElo "1998"]
[Annotator "TA"]
[PlyCount "58"]
[EventDate "2022.12.04"]
[EventType "blitz"]
[EventCountry "ROU"]
[SourceTitle "playchess.com"]
[Source "ChessBase"]
[SourceQuality "1"]
[TimeControl "180+2"]

{[%evp 9,58,42,67,63,74,58,94,81,99,91,187,176,183,166,438,433,639,611,610,318,352,173,582,525,560,433,438,441,404,353,377,352,351,349,401,401,389,343,335,334,493,490,485,454,549,540,679,679,4866,4794,1159]} 1. e4 {[%emt 0:00:02]} c5 {[%emt 0:00:00]} 2. Nf3 {[%emt 0:00:01]} Nc6 {[%emt 0:00:01]} 3. Bb5 {[%emt 0:00:01]} Nd4 {[%emt 0:00:02]} 4. Nxd4 {[%emt 0:00:02]} cxd4 {[%emt 0:00:02]} 5. c3 {[%emt 0:00:01]} dxc3 {[%emt 0:00:12]} 6. Nxc3 {[%emt 0:00:03] B30: Sicilian: 2...Nc6 3 Bb5, lines without ...g6.} a6 {[%emt 0:00:02] Against d4} 7. Be2 {[%emt 0:00:06] White is more active.} Nf6 {[%emt 0:00:09]} 8. O-O {[%emt 0:00:04] White is better.} d6 {[%emt 0:00:01]} 9. d4 {[%emt 0:00:09][%cal Bd2d4,Bd4e5][%mdl 32]} g6 {[%emt 0:00:02] [#]} (9... e6 $16) 10. e5 $146 {[%emt 0:00:20]} ({Predecessor:} 10. f4 Bg7 11. e5 dxe5 12. fxe5 Nd5 13. Nxd5 Qxd5 14. Bf3 Qd7 15. Be3 O-O 16. Qd2 {1-0 (60) Golizadeh,A (2455)-Correa,J (1883) Chess.com INT 2021}) 10... dxe5 {[%emt 0:00:10]} 11. dxe5 {[%emt 0:00:02]} Qxd1 {[%emt 0:00:05]} (11... Nd7 12. Be3 Bg7) 12. Rxd1 {[%emt 0:00:01]} Nd7 {[%emt 0:00:10]} (12... Bg7 $142 13. exf6 Bxf6) 13. Nd5 {[%emt 0:00:07] [#] Nc7+ is the strong threat.} Rb8 {[%emt 0:00:19]} 14. Be3 {[%emt 0:00:11]} Bg7 {[%emt 0:00:33]} 15. Ba7 {[%emt 0:00:29]} (15. Nc7+ $142 Kf8 16. f4) 15... O-O $2 {[%emt 0:00:19]} (15... Bxe5 {is a better chance.} 16. Bxb8 Nxb8) 16. Nxe7+ {[%emt 0:00:08]} Kh8 {[%emt 0:00:03]} 17. Bxb8 {[%emt 0:00:01]} Nxb8 {[%emt 0:00:01]} 18. Nxc8 {[%emt 0:00:10]} Rxc8 {[%emt 0:00:02]} 19. Bg4 {[%emt 0:00:16]} Re8 {[%emt 0:00:06]} 20. e6 {[%emt 0:00:02]} fxe6 {[%emt 0:00:09] [#]} 21. Bxe6 $1 {[%emt 0:00:01][%mdl 512]} Bxb2 {[%emt 0:00:07]} (21... b5 22. Rab1) 22. Rab1 {[%emt 0:00:03]} Rxe6 {[%emt 0:00:22]} 23. Rd8+ {[%emt 0:00:07]} Kg7 {[%emt 0:00:02]} 24. Rxb8 {[%emt 0:00:01][%mdl 4096] Endgame KRR-KRB} Bd4 {[%emt 0:00:05]} (24... b5 {was called for.} 25. a4 (25. Rxb2 $2 Re1#) 25... Re2 26. axb5 axb5 27. Rxb5 Bd4) 25. R8xb7+ {[%emt 0:00:05] White is clearly winning.} ({Don't do} 25. R1xb7+ Kh6 26. Kf1 Rf6 $18) 25... Kf6 {[%emt 0:00:01]} 26. Kf1 {[%emt 0:00:22] Against Re2} ({But not} 26. Rxh7 Re2 27. Rh4 Ke5 $18) 26... Kf5 {[%emt 0:00:11]} 27. Rxh7 {[%emt 0:00:10]} Rf6 {[%emt 0:00:04]} 28. Rd1 {[%emt 0:00:12]} Ke4 {[%emt 0:00:01]} 29. Re7+ {[%emt 0:00:04]} Kd5 {[%emt 0:00:39] Black got outplayed after the opening.   Weighted Error Value: White=0.36/Black=0.89} 1-0

[Event "Romanian Team Blitz Open 2022"]
[Site "Sebes"]
[Date "2022.12.04"]
[Round "5.31"]
[White "Sandru, Nicolae"]
[Black "Denes, Attila-Norbert"]
[Result "0-1"]
[ECO "A40"]
[WhiteElo "1647"]
[BlackElo "1755"]
[Annotator "NA RC COMBH"]
[PlyCount "61"]
[EventDate "2022.12.04"]
[EventType "blitz"]
[EventCountry "ROU"]
[SourceTitle "playchess.com"]
[Source "ChessBase"]
[SourceQuality "1"]
[TimeControl "180+2"]

1. d4 {[%emt 0:00:03]} g6 {[%emt 0:00:00]} 2. Bf4 {[%emt 0:00:01]} Bg7 {[%emt 0:00:02]} 3. h3 {[%emt 0:00:01]} b6 {[%emt 0:00:03]} 4. e3 {[%emt 0:00:02]} Bb7 {[%emt 0:00:01]} 5. Nf3 {[%emt 0:00:01]} d6 {[%emt 0:00:01]} 6. c4 {[%emt 0:00:01]} Nd7 {[%emt 0:00:01]} 7. Nc3 {[%emt 0:00:01]} e6 {[%emt 0:00:06]} 8. Be2 {[%emt 0:00:01]} Ne7 {[%emt 0:00:02]} 9. O-O {[%emt 0:00:02]} h6 {[%emt 0:00:12]} 10. Qc2 {[%emt 0:00:01]} a6 {[%emt 0:00:07]} 11. Rac1 {[%emt 0:00:02]} O-O {[%emt 0:00:06]} 12. Rfd1 {[%emt 0:00:01]} Kh8 {[%emt 0:00:36]} 13. Bh2 {[%emt 0:00:00]} f5 {[%emt 0:00:23]} 14. b4 {[%emt 0:00:06]} g5 {[%emt 0:00:11]} 15. a4 {[%emt 0:00:21]} g4 {[%emt 0:00:13]} 16. hxg4 {[%emt 0:00:03]} fxg4 {[%emt 0:00:08]} 17. Ne1 {[%emt 0:00:02]} h5 {[%emt 0:00:17]} 18. e4 {[%emt 0:00:06]} Ng6 {[%emt 0:00:15]} 19. e5 {[%emt 0:00:09]} Nh4 {[%emt 0:00:12]} 20. exd6 {[%emt 0:00:06]} Qf6 {[%emt 0:00:14]} 21. Bg3 {[%emt 0:00:02]} Nf5 {[%emt 0:00:07]} 22. Qd3 {[%emt 0:00:40]} cxd6 {[%emt 0:00:05]} 23. Bf1 {[%emt 0:00:07]} h4 {[%emt 0:00:02]} 24. Bh2 {[%emt 0:00:10]} g3 {[%emt 0:00:04]} 25. fxg3 {[%emt 0:00:04]} hxg3 {[%emt 0:00:08]} 26. Nf3 {[%emt 0:00:20]} gxh2+ {[%emt 0:00:03]} 27. Kh1 {[%emt 0:00:01]} Qh6 {[%emt 0:00:08]} 28. Ne1 {[%emt 0:00:12]} Nf6 {[%emt 0:00:03]} 29. Qh3 {[%emt 0:00:03]} Qxh3 {[%emt 0:00:04]} 30. d5 {[%emt 0:00:06]} Qh6 {[%emt 0:00:02]} 31. Nf3 {[%emt 0:01:09]} 0-1